bitfinex-derivatives/quotes_SOLF0:USTF0_20260213
["timestamp","ask_amount","ask_price","bid_price","bid_amount"]
[1770970442591,3.92954775,79.069,79.021,4.06186852]
[1770970442790,11.3939,79.057,79.021,4.06186852]
[1770970443496,11.3943,79.054,79.021,4.06186852]
[1770970445590,11.3957,79.045,79.02,3.51043671]
[1770970446789,3.92954775,79.046,79.01,7.57230523]
[1770970446987,3.92954775,79.046,79.0,3.51043671]
[1770970447387,3.92954775,79.033,79.0,3.51043671]
[1770970447891,11.396,79.042,79.01,3.51043671]
[1770970448092,3.92954775,79.041,79.01,3.51043671]
[1770970449799,11.3966,79.038,79.01,3.51043671]
[1770970450996,11.3974,79.033,79.01,3.51043671]
[1770970453192,15.31661209,79.033,79.01,3.51043671]
[1770970453402,3.91921209,79.019,78.98,3.51043671]
[1770970454001,3.91921209,79.019,78.972,4.06186852]
[1770970454801,11.4009,79.008,78.972,4.06186852]
[1770970455598,11.3999,79.015,78.981,4.06186852]
[1770970455989,3.91053708,79.02,78.981,4.06186852]
[1770970456190,3.91053708,79.019,78.97,3.51043671]
[1770970456394,3.91053708,78.991,78.956,4.06186852]
[1770970456590,3.91053708,78.991,78.96,3.51043671]
[1770970458090,11.4023,78.999,78.97,3.51043671]
[1770970458294,3.91352393,78.998,78.97,3.51043671]
[1770970458495,11.4037,78.989,78.96,3.51043671]
[1770970458695,177.2528,79.051,78.944,4.06186852]
[1770970458696,3.91352393,78.988,78.944,4.06186852]
[1770970458896,3.51043671,79.0,78.908,37.95]
[1770970458897,3.92756188,79.0,78.97,3.51043671]
[1770970459105,3.92756188,79.019,78.981,4.06186852]
[1770970459792,11.4008,79.009,78.981,4.06186852]
[1770970461897,3.92756188,79.019,78.97,3.51043671]
[1770970461898,11.4019,79.002,78.97,3.51043671]
[1770970462100,11.4019,79.002,78.97,7.57230523]
[1770970462306,11.4019,79.002,78.971,4.06186852]
[1770970464704,11.4019,79.002,78.922,12.85676112]
[1770970464705,3.92954775,78.989,78.944,4.06186852]
[1770970465295,3.92954775,78.989,78.95,3.51043671]
[1770970465700,11.4057,78.975,78.95,3.51043671]
[1770970467304,104.66,79.023,78.919,117.26]
[1770970467305,3.5051838,79.0,78.96,7.57230523]
[1770970467495,3.5051838,79.029,78.98,3.51043671]
[1770970468413,11.4011,79.007,78.98,3.51043671]
[1770970468710,3.5051838,79.014,78.972,4.06186852]
[1770970469514,3.5051838,79.014,78.98,3.51043671]
[1770970469709,11.4012,79.006,78.98,3.51043671]
[1770970470915,9.25087517,79.053,79.0,3.51043671]
[1770970470916,11.3998,79.016,79.0,3.51043671]
[1770970471110,3.52909624,79.038,79.0,3.51043671]
[1770970472209,3.52909624,79.038,79.01,3.51043671]
[1770970472810,11.398,79.029,79.01,3.51043671]
[1770970473011,11.398,79.029,79.01,3.671e-05]
[1770970473319,3.52909624,79.038,79.0,3.51043671]
[1770970474008,3.52909624,79.038,78.99,3.51043671]
[1770970474412,11.3997,79.017,78.99,3.51043671]
[1770970474618,3.53104434,79.026,78.98,7.55801124]
[1770970474815,3.53104434,79.026,78.99,3.51043671]
[1770970475011,3.49578096,79.038,79.0,3.51043671]
[1770970475611,11.3983,79.026,79.0,3.51043671]
[1770970476007,11.3983,79.026,78.992,4.12744104]
[1770970476214,11.3983,79.026,79.0,3.51043671]
[1770970478411,11.3993,79.019,78.992,4.12744104]
[1770970479317,11.4002,79.013,78.968,101.02]
[1770970479525,3.45214703,79.012,78.97,3.51043671]
[1770970480820,11.4014,79.005,78.97,3.51043671]
[1770970481921,11.4014,79.005,78.98,3.51043671]
[1770970488428,11.4014,79.005,78.971,4.12744104]
[1770970493523,11.4022,78.999,78.971,4.12744104]
[1770970496633,3.45214703,79.012,78.971,4.12744104]
[1770970496634,11.4018,79.002,78.971,4.12744104]
[1770970496831,3.45214703,79.012,78.971,4.12744104]
[1770970497134,3.45214703,79.012,78.93,37.95]
[1770970497135,2.95567848,78.995,78.948,23.37581182]
[1770970497430,2.95567848,78.995,78.941,4.12744104]
[1770970497431,2.95567848,78.989,78.95,3.51788887]
[1770970497730,2.95567848,78.989,78.95,7.64532991]
[1770970498730,11.4048,78.981,78.95,7.64532991]
[1770970499029,2.95567848,78.989,78.939,4.12744104]
[1770970499331,2.95567848,78.989,78.95,3.51788887]
[1770970499729,2.95567848,78.989,78.941,4.12744104]
[1770970500128,11.4062,78.972,78.941,4.12744104]
[1770970501628,11.4062,78.972,78.92,2.20377301]
[1770970501629,2.67870085,79.001,78.951,4.17606909]
[1770970501834,2.67870085,79.001,78.97,3.51788887]
[1770970502236,11.4015,79.004,78.98,3.51788887]
[1770970503339,0.08975768,79.0,78.98,3.51788887]
[1770970504633,0.08975768,79.0,78.99,3.51788887]
[1770970504834,11.4002,79.013,78.99,3.51788887]
[1770970506126,11.4017,79.003,78.982,0.08336291]
[1770970506331,14.14728913,79.003,78.97,3.51788887]
[1770970509235,11.4024,78.998,78.97,3.51788887]
[1770970510542,11.4024,78.998,78.98,3.51788887]
[1770970510942,2.74558913,79.003,78.98,3.51788887]
[1770970511238,11.4014,79.005,78.98,3.51788887]
[1770970515143,2.61743655,78.989,78.94,3.51788887]
[1770970515543,2.61743655,78.989,78.95,3.51788887]
[1770970515741,2.61743655,78.989,78.96,3.51788887]
[1770970516144,2.61743655,78.989,78.95,3.51788887]
[1770970516448,11.4047,78.982,78.95,3.51788887]
[1770970517039,11.4047,78.982,78.951,4.17606909]
[1770970517239,11.4047,78.982,78.96,3.51788887]
[1770970517942,13.91664087,78.98,78.939,4.17606909]
[1770970518146,2.51164087,78.979,78.94,3.51788887]
[1770970518348,2.51164087,78.979,78.95,3.51788887]
[1770970518545,2.60346101,78.979,78.95,3.51788887]
[1770970519540,11.4058,78.974,78.95,3.51788887]
[1770970520041,0.09182014,78.979,78.939,4.17606909]
[1770970520251,0.09182014,78.979,78.96,3.51788887]
[1770970520546,0.09182014,78.979,78.96,8.887e-05]
[1770970520742,11.4053,78.978,78.96,8.887e-05]
[1770970521249,11.4053,78.978,78.95,3.51788887]
[1770970521953,11.4053,78.978,78.939,4.17606909]
[1770970521954,11.4041,78.986,78.97,3.51788887]
[1770970522142,2.52571116,79.003,78.97,3.51788887]
[1770970522843,11.4035,78.99,78.96,7.69395796]
[1770970523044,2.6582912,78.99,78.96,3.51788887]
[1770970523349,2.6582912,78.99,78.967,0.08474018]
[1770970523650,2.6582912,78.99,78.95,3.51788887]
[1770970523651,11.4057,78.975,78.95,3.51788887]
[1770970525045,11.4061,78.973,78.95,3.51788887]
[1770970526546,11.4049,78.981,78.95,3.51788887]
[1770970527642,11.4057,78.975,78.95,3.51788887]
[1770970530249,11.4044,78.984,78.961,4.17606909]
[1770970530447,11.4044,78.984,78.96,3.51788887]
[1770970530748,2.58892723,78.989,78.94,3.51788887]
[1770970531843,11.4063,78.971,78.94,3.51788887]
[1770970533558,11.4063,78.971,78.95,3.51788887]
[1770970535053,11.4063,78.971,78.94,3.51788887]
[1770970535961,11.4063,78.971,78.95,3.51788887]
[1770970537954,11.4054,78.977,78.95,3.51788887]
[1770970538562,11.4054,78.977,78.95,7.61269532]
[1770970538955,11.4062,78.972,78.95,7.61269532]
[1770970539964,2.5604203,78.989,78.95,3.51788887]
[1770970540562,11.4053,78.978,78.95,3.51788887]
[1770970542462,2.5604203,78.989,78.95,3.51788887]
[1770970542664,0.08332644,78.972,78.95,3.51788887]
[1770970543161,11.4073,78.964,78.94,3.51788887]
[1770970544177,11.4064,78.97,78.95,3.51788887]
[1770970544373,2.58533377,78.986,78.95,7.61269532]
[1770970544577,2.58533377,78.986,78.96,3.51788887]
[1770970545275,11.4054,78.977,78.96,3.51788887]
[1770970545674,11.4054,78.977,78.95,7.61269532]
[1770970548574,11.4054,78.977,78.96,3.51788887]
[1770970548776,11.4054,78.977,78.951,4.09480645]
[1770970553876,11.4061,78.972,78.951,4.09480645]
[1770970554677,11.4061,78.972,78.95,3.51951442]
[1770970555078,2.59692645,78.969,78.94,3.51951442]
[1770970555584,2.59692645,78.969,78.95,3.51951442]
[1770970556086,11.4056,78.976,78.95,3.51951442]
[1770970558885,2.59692645,78.979,78.95,3.51951442]
[1770970559091,2.4422172,78.989,78.96,3.51951442]
[1770970559379,2.4422172,78.989,78.951,4.09480645]
[1770970560889,2.43982853,78.986,78.951,4.09480645]
[1770970561788,11.4043,78.985,78.951,4.09480645]
[1770970562090,2.46986297,78.984,78.951,4.09480645]
[1770970562694,2.46986297,78.982,78.95,3.51951442]
[1770970563888,11.4049,78.98,78.95,3.51951442]
[1770970564594,11.4041,78.986,78.96,3.51951442]
[1770970565796,11.4041,78.986,78.951,3.93809453]
[1770970566794,11.4041,78.986,78.96,3.51951442]
[1770970569196,11.4049,78.98,78.951,3.93809453]
[1770970569391,2.49066501,78.979,78.95,3.51951442]
[1770970569586,2.49066501,78.979,78.941,3.93809453]
[1770970570095,2.49066501,78.979,78.941,3.71380599]
[1770970570797,11.4064,78.971,78.941,3.71380599]
[1770970570998,2.49066501,78.979,78.95,3.51951442]
[1770970571693,11.4055,78.977,78.95,3.51951442]
[1770970572100,14.12463169,78.977,78.95,3.51951442]
[1770970572402,11.406,78.973,78.95,3.51951442]
[1770970572697,0.08446821,78.971,78.941,3.71380599]
[1770970573798,2.84402141,78.971,78.941,3.71380599]
[1770970573999,2.7595532,78.962,78.93,3.51951442]
[1770970575190,2.7595532,78.962,78.94,3.51951442]
[1770970575501,0.0801935,78.954,78.94,3.51951442]
[1770970576398,0.0801935,78.954,78.93,7.45760895]
[1770970576603,0.0801935,78.954,78.931,3.93809453]
[1770970576996,14.2305843,78.952,78.92,3.51951442]
[1770970577196,2.8215843,78.951,78.92,3.51951442]
[1770970577593,2.8215843,78.951,78.91,3.51951442]
[1770970577897,2.8215843,78.929,78.89,3.51951442]
[1770970578495,2.8215843,78.929,78.88,3.51951442]
[1770970579404,11.4142,78.916,78.89,3.51951442]
[1770970582299,11.413,78.924,78.89,3.51951442]
[1770970583205,11.413,78.924,78.9,3.51951442]
[1770970584298,11.4139,78.918,78.891,3.93809453]
[1770970584694,2.8215843,78.929,78.88,3.51951442]
[1770970585799,3.99144261,78.9,78.847,11.4241]
[1770970586000,3.99144261,78.9,78.87,3.51951442]
[1770970586200,3.99144261,78.912,78.88,3.51951442]
[1770970586404,11.4159,78.904,78.88,3.51951442]
[1770970587715,11.4148,78.912,78.89,3.51951442]
[1770970588208,11.4134,78.922,78.891,3.93809453]
[1770970588400,11.4134,78.922,78.9,3.51951442]
[1770970590703,11.4143,78.915,78.9,3.51951442]
[1770970591604,11.4133,78.922,78.9,3.51951442]
[1770970591800,11.4133,78.922,78.91,3.51951442]
[1770970592107,11.4124,78.929,78.91,1.442e-05]
[1770970592504,3.99144261,78.934,78.891,3.93809453]
[1770970592706,11.4139,78.918,78.9,3.51951442]
[1770970593006,3.99144261,78.934,78.891,3.93809453]
[1770970593007,3.99144261,78.934,78.91,1.442e-05]
[1770970593205,3.99144261,78.934,78.9,3.51951442]
[1770970593904,11.4128,78.926,78.9,3.51951442]
[1770970594104,3.90856252,78.959,78.91,3.51951442]
[1770970594302,3.90856252,78.959,78.92,3.51951442]
[1770970594506,11.4101,78.945,78.92,3.51951442]
[1770970594909,3.90856252,78.959,78.93,3.51951442]
[1770970595606,11.4091,78.952,78.93,1.442e-05]
[1770970595806,11.4091,78.952,78.921,4.07357274]
[1770970596009,11.4112,78.937,78.91,4.07357274]
[1770970596210,11.4112,78.937,78.91,7.59308716]
[1770970596912,11.4122,78.93,78.91,3.51951442]
[1770970597699,11.4122,78.93,78.9,7.59308716]
[1770970598105,11.4112,78.937,78.91,3.51951442]
[1770970598711,11.41,78.945,78.91,3.51951442]
[1770970598910,11.41,78.945,78.911,4.07357274]
[1770970599507,4.19512871,78.952,78.921,4.07357274]
[1770970599710,11.4089,78.953,78.921,4.07357274]
[1770970600214,11.4098,78.947,78.921,4.07357274]
[1770970600408,11.4098,78.947,78.92,3.51951442]
[1770970600608,4.19512871,78.962,78.92,3.51951442]
[1770970600804,4.19512871,78.962,78.93,3.51951442]
[1770970601009,11.4087,78.954,78.93,3.51951442]
[1770970601216,11.4087,78.954,78.92,7.59308716]
[1770970601814,4.19512871,78.962,78.921,4.07357274]
[1770970602019,11.4074,78.963,78.94,3.51951442]
[1770970602517,11.4065,78.97,78.94,3.51951442]
[1770970602714,4.19512871,78.986,78.96,3.51951442]
[1770970603015,4.19512871,79.009,78.96,3.51951442]
[1770970603205,11.4048,78.981,78.96,3.51951442]
[1770970603919,4.19512871,78.994,78.97,3.51951442]
[1770970603920,11.4033,78.992,78.97,3.51951442]
[1770970605423,11.4043,78.985,78.952,4.07357274]
[1770970605614,11.4043,78.985,78.96,3.51951442]
[1770970605914,4.19512871,78.989,78.95,3.51951442]
[1770970606316,11.4054,78.977,78.95,3.51951442]
[1770970606521,4.19512871,78.978,78.94,7.59308716]
[1770970607223,4.19512871,78.978,78.94,3.51951442]
[1770970607724,11.4063,78.971,78.94,3.51951442]
[1770970609222,11.4068,78.967,78.94,3.51951442]
[1770970609819,11.4068,78.967,78.892,23.47544587]
[1770970609820,4.19512871,78.959,78.91,3.51951442]
[1770970610017,3.51951442,78.96,78.91,3.51951442]
[1770970610018,4.19512871,78.949,78.91,3.51951442]
[1770970610422,15.60582871,78.941,78.91,3.51951442]
[1770970610921,15.60582871,78.941,78.91,3.52336395]
[1770970612222,11.4094,78.95,78.92,3.52336395]
[1770970612520,11.4094,78.95,78.93,3.52336395]
[1770970612921,11.4094,78.95,78.92,3.52336395]
[1770970613811,11.4081,78.958,78.93,3.52336395]
[1770970614124,4.19512871,78.965,78.93,3.52336395]
[1770970615318,11.4085,78.956,78.93,3.52336395]
[1770970615916,11.4094,78.95,78.92,7.59693669]
[1770970616121,4.19512871,78.949,78.91,3.52336395]
[1770970616418,4.19512871,78.949,78.872,38.01]
[1770970616419,4.19512871,78.949,78.92,3.52336395]
[1770970616921,4.19512871,78.949,78.911,4.07357274]
[1770970617725,11.4091,78.944,78.911,4.07357274]
[1770970618224,11.41,78.937,78.91,3.52336395]
[1770970619016,11.4091,78.944,78.91,3.52336395]
[1770970619217,4.19512871,78.962,78.93,3.52336395]
[1770970619518,11.4067,78.96,78.93,3.52336395]
[1770970619919,4.19512871,78.975,78.94,3.52336395]
[1770970620420,11.4049,78.973,78.94,3.52336395]
[1770970620923,11.4049,78.973,78.95,0.09526978]
[1770970621321,11.4037,78.981,78.95,0.09526978]
[1770970621527,11.4037,78.981,78.96,3.52336395]
[1770970622220,3.83840733,78.993,78.96,3.52336395]
[1770970622221,11.4027,78.988,78.96,3.52336395]
[1770970622426,3.83840733,79.009,78.97,3.52336395]
[1770970622828,3.83840733,78.999,78.96,3.52336395]
[1770970623329,11.4028,78.987,78.96,3.52336395]
[1770970625726,11.4037,78.981,78.96,3.52336395]
[1770970625933,11.4037,78.981,78.95,3.52336395]
[1770970626331,3.83840733,78.987,78.96,3.52336395]
[1770970627130,0.08262189,78.981,78.96,3.52336395]
[1770970627839,11.4014,78.997,78.97,3.52336395]
[1770970629237,3.83840733,78.991,78.963,0.08910093]
[1770970629826,3.83840733,78.991,78.95,3.52336395]
[1770970630232,3.83840733,78.971,78.94,3.52336395]
[1770970630432,3.83840733,78.971,78.882,38.01]
[1770970630433,3.83840733,78.971,78.93,3.52336395]
[1770970631038,3.83840733,78.971,78.94,3.52336395]
[1770970631636,0.09334656,78.963,78.94,3.52336395]
[1770970632238,11.4071,78.958,78.93,3.52336395]
[1770970633140,0.09593637,78.952,78.93,3.52336395]
[1770970633837,11.50383637,78.952,78.93,3.52336395]
[1770970634036,0.09593637,78.952,78.93,3.52336395]
[1770970635039,11.50373637,78.952,78.93,3.52336395]
[1770970637145,0.09593637,78.952,78.94,3.52336395]
[1770970637644,11.4066,78.961,78.94,3.52336395]
[1770970638044,0.08602708,78.954,78.94,3.52336395]
[1770970638244,0.08602708,78.954,78.927,4.14443955]
[1770970638446,0.08602708,78.954,78.94,3.52336395]
[1770970638745,0.08602708,78.954,78.93,3.52336395]
[1770970640954,11.4081,78.951,78.92,3.52336395]
[1770970641650,11.4081,78.951,78.93,3.52336395]
[1770970643446,11.4081,78.951,78.92,3.52336395]
[1770970644543,11.4088,78.946,78.92,3.52336395]
[1770970645340,11.4096,78.94,78.92,3.52336395]
[1770970645549,11.4096,78.94,78.91,3.52336395]
[1770970646252,0.09177794,78.933,78.903,4.14443955]
[1770970646453,0.09177794,78.933,78.92,3.52336395]
[1770970648253,0.09177794,78.933,78.91,3.52336395]
[1770970648552,11.4128,78.918,78.886,23.47544587]
[1770970648749,11.4128,78.918,78.89,3.52336395]
[1770970649048,11.4128,78.918,78.878,4.14443955]
[1770970649049,3.83840733,78.933,78.9,3.52336395]
[1770970649244,15.24900733,78.933,78.9,3.52336395]
[1770970649449,0.08974898,78.912,78.9,3.52336395]
[1770970653055,11.4108,78.932,78.9,7.66438059]
[1770970654446,11.4116,78.927,78.9,7.66438059]
[1770970654653,11.4116,78.927,78.9,3.52336395]
[1770970655357,11.4116,78.927,78.906,0.08617121]
[1770970657455,15.56840386,78.934,78.906,0.08617121]
[1770970658054,4.15790386,78.934,78.906,0.08617121]
[1770970658862,11.4112,78.929,78.906,0.08617121]
[1770970659157,15.56910386,78.929,78.906,0.08617121]
[1770970664165,11.412,78.924,78.906,0.08617121]
[1770970664363,11.412,78.924,78.888,4.02889847]
[1770970664364,4.15790386,78.923,78.89,3.52336395]
[1770970664557,4.15790386,78.923,78.88,3.52336395]
[1770970665753,4.15790386,78.917,78.88,3.52336395]
[1770970665960,0.08649428,78.909,78.88,3.52336395]
[1770970666564,4.15790386,78.908,78.87,3.52336395]
[1770970666968,4.15790386,78.908,78.88,3.52336395]
[1770970667864,15.57210386,78.908,78.88,3.52336395]
[1770970670971,11.4156,78.898,78.87,7.55543619]
[1770970671773,11.4141,78.909,78.881,4.02889847]
[1770970673865,11.4141,78.909,78.876,0.08458436]
[1770970673866,11.412,78.924,78.9,3.52653772]
[1770970674062,4.15790386,78.949,78.91,3.52653772]
[1770970674468,4.15790386,78.949,78.901,4.02889847]
[1770970674666,11.4107,78.933,78.91,3.52653772]
[1770970675780,4.15790386,78.929,78.9,3.52653772]
[1770970675982,4.15790386,78.942,78.92,3.52653772]
[1770970676278,0.09177627,78.929,78.92,3.52653772]
[1770970676479,4.15790386,78.959,78.92,3.52653772]
[1770970676674,4.15790386,78.959,78.923,0.0941925]
[1770970677974,11.4094,78.942,78.923,0.0941925]
[1770970678784,4.15790386,78.949,78.884,4.02889847]
[1770970678982,4.15790386,78.949,78.91,3.52653772]
[1770970679283,11.4099,78.938,78.91,3.52653772]
[1770970681186,0.08726722,78.94,78.91,3.52653772]
[1770970682483,11.4098,78.939,78.91,3.52653772]
[1770970682883,0.08726722,78.94,78.91,3.52653772]
[1770970683485,11.49696722,78.94,78.91,3.52653772]
[1770970683690,3.86675729,78.939,78.91,3.52653772]
[1770970684085,11.41,78.937,78.91,3.52653772]
[1770970684588,3.86675729,78.939,78.91,3.52653772]
[1770970684785,3.86675729,78.939,78.887,3.81554857]
[1770970684992,3.86675729,78.929,78.89,3.52653772]
[1770970685188,3.86675729,78.911,78.871,3.81554857]
[1770970685491,3.86675729,78.911,78.88,3.52653772]
[1770970685889,0.08235091,78.899,78.88,3.52653772]
[1770970686288,11.4136,78.913,78.881,3.81554857]
[1770970686493,11.4136,78.913,78.89,3.52653772]
[1770970686791,11.4125,78.92,78.89,3.52653772]
[1770970687782,11.4125,78.92,78.897,0.08378655]
[1770970688988,3.86675729,78.923,78.897,0.08378655]
[1770970688989,11.4135,78.913,78.897,0.08378655]
[1770970690393,11.4118,78.925,78.897,0.08378655]
[1770970690892,11.4118,78.925,78.891,3.81554857]
[1770970691284,11.4118,78.925,78.903,0.08049254]
[1770970693197,3.86675729,78.934,78.903,0.08049254]
[1770970693390,11.4103,78.935,78.91,3.52653772]
[1770970693785,11.4103,78.935,78.903,3.89604111]
[1770970695297,3.86675729,78.932,78.903,0.08049254]
[1770970695798,3.86675729,78.932,78.9,3.52653772]
[1770970696396,3.86675729,78.931,78.91,0.09622503]
[1770970699290,11.4111,78.93,78.91,0.09622503]
[1770970699699,3.86675729,78.931,78.91,0.09622503]
[1770970700092,22.8133,78.961,78.91,0.09622503]
[1770970700093,3.86675729,78.949,78.91,0.09622503]
[1770970700293,11.4103,78.936,78.91,0.09622503]
[1770970700695,11.4103,78.936,78.9,3.52653772]
[1770970700999,11.4089,78.945,78.915,0.08274939]
[1770970701495,11.4079,78.952,78.911,3.81554857]
[1770970701697,11.4079,78.952,78.92,3.52653772]
[1770970701901,3.86675729,78.956,78.922,0.09126125]
[1770970702602,11.4077,78.953,78.922,0.09126125]
[1770970703803,11.4083,78.95,78.922,0.09126125]
[1770970704107,3.86675729,78.95,78.922,0.09126125]
[1770970704297,3.86675729,78.95,78.92,3.52653772]
[1770970704498,11.409,78.945,78.911,3.81554857]
[1770970704893,11.409,78.945,78.927,0.08166279]
[1770970708309,3.86675729,78.95,78.927,0.08166279]
[1770970709097,11.4091,78.944,78.911,3.81554857]
[1770970709305,15.27585729,78.944,78.911,3.81554857]
[1770970711806,3.86675729,78.944,78.92,3.52653772]
[1770970712209,3.86675729,78.944,78.911,3.81554857]
[1770970714220,3.86675729,78.944,78.91,3.52653772]
[1770970714901,3.8203547,78.941,78.91,3.52653772]
[1770970715712,3.8203547,78.934,78.9,3.52653772]
[1770970716707,0.09309331,78.925,78.9,3.52653772]
[1770970718815,0.09309331,78.925,78.9,7.71827568]
[1770970719314,0.09309331,78.925,78.91,3.52653772]
[1770970719516,3.99302783,78.959,78.911,4.19173796]
[1770970719708,3.99302783,78.959,78.921,4.19173796]
[1770970720214,3.99302783,78.959,78.93,3.52653772]
[1770970720514,3.88004804,78.978,78.931,3.80296216]
[1770970721309,3.88004804,78.978,78.947,0.08048015]
[1770970721509,3.88004804,78.978,78.93,3.52653772]
[1770970721510,11.4072,78.957,78.93,3.52653772]
[1770970721815,3.88004804,78.956,78.92,3.52653772]
[1770970723010,0.083109,78.946,78.92,3.52653772]
[1770970723208,3.96315704,78.946,78.92,3.52653772]
[1770970723412,15.28894804,78.945,78.92,3.52653772]
[1770970723614,3.88004804,78.944,78.91,3.52653772]
[1770970723814,3.88004804,78.944,78.92,3.52653772]
[1770970724110,3.88004804,78.942,78.899,3.80296216]
[1770970724316,3.88004804,78.942,78.91,3.52653772]
[1770970725021,0.09065636,78.934,78.91,3.52653772]
[1770970725314,3.93062366,78.933,78.91,3.52653772]
[1770970725510,3.93062366,78.933,78.9,3.52653772]
[1770970725712,3.93062366,78.933,78.91,3.52653772]
[1770970726319,0.08597884,78.929,78.91,3.52653772]
[1770970730817,4.01348291,78.965,78.921,3.9236598]
[1770970731018,4.01348291,78.979,78.94,3.52653772]
[1770970731723,11.4053,78.97,78.94,3.52653772]
[1770970731913,4.01348291,78.97,78.94,3.52653772]
[1770970732114,4.01348291,78.969,78.93,3.52653772]
[1770970732618,4.01348291,78.969,78.947,0.09077115]
[1770970733020,4.01348291,78.969,78.93,3.52164209]
[1770970733216,11.4082,78.95,78.93,3.52164209]
[1770970733420,4.01348291,78.965,78.93,3.52164209]
[1770970733825,11.4073,78.956,78.93,3.52164209]
[1770970734030,11.4073,78.956,78.92,3.52164209]
[1770970734425,11.4073,78.956,78.874,38.01]
[1770970734426,4.01348291,79.016,78.951,3.9236598]
[1770970734633,4.01348291,79.016,78.99,3.52164209]
[1770970735019,4.01348291,79.016,78.98,3.52164209]
[1770970735527,4.01348291,79.016,78.97,3.52164209]
[1770970735728,4.01348291,79.009,78.961,3.9236598]
[1770970736035,4.01348291,78.999,78.96,3.52164209]
[1770970736232,0.08595397,78.993,78.96,3.52164209]
[1770970736432,4.01348291,78.989,78.94,3.52164209]
[1770970737026,4.01348291,78.979,78.93,3.52164209]
[1770970737233,4.01348291,78.969,78.92,3.52164209]
[1770970737434,4.01348291,78.969,78.93,3.52164209]
[1770970738238,0.08155023,78.957,78.93,3.52164209]
[1770970739234,3.52164209,78.98,78.94,3.52164209]
[1770970739937,3.52164209,78.97,78.93,7.44530189]
[1770970740334,4.01348291,78.979,78.94,3.52164209]
[1770970740830,4.01348291,78.979,78.942,0.09325408]
[1770970741039,3.90001278,78.969,78.942,0.09325408]
[1770970741540,3.90001278,78.969,78.93,3.52164209]
[1770970741937,3.90001278,78.969,78.948,0.09449449]
[1770970743136,3.52164209,78.98,78.948,0.09449449]
[1770970743443,7.42165487,78.98,78.948,0.09449449]
[1770970743637,3.90001278,78.978,78.93,3.52164209]
[1770970744031,3.90001278,78.969,78.93,3.52164209]
[1770970744341,0.08570689,78.962,78.93,3.52164209]
[1770970746441,3.98571967,78.962,78.92,3.52164209]
[1770970749344,3.90001278,78.949,78.904,11.4147]
[1770970749844,3.90001278,78.949,78.9,3.52164209]
[1770970750439,0.09254988,78.934,78.9,3.52164209]
[1770970750641,0.09254988,78.934,78.889,3.9340663]
[1770970750642,3.99256266,78.934,78.89,3.52164209]
[1770970750847,3.99256266,78.934,78.9,3.52164209]
[1770970751236,0.09254988,78.934,78.9,3.52164209]
[1770970751441,0.09254988,78.934,78.901,3.9340663]
[1770970751841,0.09254988,78.934,78.901,15.3491663]
[1770970752439,0.09254988,78.934,78.9,3.52164209]
[1770970754447,3.90001278,78.919,78.854,3.9340663]
[1770970754649,3.90001278,78.919,78.87,3.52164209]
[1770970754843,3.90001278,78.919,78.88,3.52164209]
[1770970755049,3.90001278,78.919,78.886,11.4174]
[1770970755455,3.90001278,78.919,78.88,3.52164209]
[1770970755456,0.08293987,78.907,78.88,3.52164209]
[1770970756052,0.08293987,78.907,78.89,3.52164209]
[1770970756358,3.90001278,78.933,78.89,7.45570839]
[1770970756755,7.42165487,78.95,78.91,3.52164209]
[1770970757149,3.90001278,78.949,78.91,3.52164209]
[1770970757657,3.90001278,78.949,78.922,0.08571158]
[1770970757853,3.90001278,78.949,78.909,11.414]
[1770970758056,0.08310766,78.937,78.909,11.414]
[1770970758249,3.98312044,78.937,78.909,11.414]
[1770970758450,3.98312044,78.937,78.9,3.52164209]
[1770970759655,3.98312044,78.937,78.899,11.4153]
[1770970759852,3.98312044,78.937,78.902,11.4149]
[1770970760355,3.90001278,78.937,78.902,11.4149]
[1770970760751,3.90001278,78.964,78.901,3.9340663]
[1770970760957,3.90001278,78.978,78.94,3.52164209]
[1770970761967,3.90001278,78.978,78.948,11.4083]
[1770970762566,3.90001278,78.978,78.94,3.52164209]
[1770970763872,3.90001278,78.978,78.941,11.4093]
[1770970764072,0.08800901,78.967,78.94,3.52164209]
[1770970765775,3.90001278,78.989,78.95,3.52164209]
[1770970766168,3.52164209,78.99,78.946,11.4086]
[1770970766169,3.90001278,78.986,78.946,11.49147649]
[1770970770771,3.90001278,78.986,78.952,11.4078]
[1770970771377,3.90001278,78.986,78.946,0.08287649]
[1770970772781,3.90001278,78.986,78.948,11.4083]
[1770970777279,3.90001278,78.986,78.955,11.4074]
[1770970777581,3.81064607,78.999,78.97,3.52164209]
[1770970777883,3.81064607,78.999,78.961,3.97411739]
[1770970778180,3.52164209,79.01,78.977,0.09738437]
[1770970778384,3.81064607,79.011,78.98,3.52164209]
[1770970779779,3.81064607,79.011,78.984,11.4032]
[1770970780382,3.81064607,79.011,78.978,11.4041]
[1770970780582,3.81064607,79.011,78.977,0.09738437]